fUST/lending_fUST_20240726
["ID","MTS","AMOUNT","RATE_DAILY","PERIOD"]
[333182286,1721925043105,-500.0,0.00013698,2]
[333182287,1721925043119,-5368.64,0.00013698,2]
[333182288,1721925043129,-500.0,0.00013698,2]
[333182289,1721925043139,-500.0,0.00013698,2]
[333182290,1721925043149,-500.0,0.00013698,2]
[333182291,1721925043160,-500.0,0.00013698,2]
[333182292,1721925043170,-500.0,0.00013698,2]
[333182293,1721925043180,-1936.03,0.00013698,2]
[333182295,1721925043189,-1762.51,0.00013698,2]
[333182296,1721925043200,-500.0,0.00013698,2]
[333182298,1721925043210,-500.0,0.00013698,2]
[333182300,1721925043220,-151.0,0.00013698,2]
[333182302,1721925043229,-500.0,0.00013698,2]
[333182304,1721925043239,-582.83,0.00013698,2]
[333182307,1721925043249,-500.0,0.00013698,2]
[333182310,1721925043265,-971.21,0.00013698,2]
[333182312,1721925043275,-891.54,0.00013698,2]
[333182313,1721925043285,-500.0,0.00013698,2]
[333182314,1721925043295,-500.0,0.00013698,2]
[333182315,1721925043304,-500.0,0.00013698,2]
[333182316,1721925043314,-500.0,0.00013698,2]
[333182317,1721925043325,-1736.38,0.00013698,2]
[333182318,1721925043335,-1449.69,0.00013698,2]
[333182319,1721925043345,-1149.49,0.00013698,2]
[333182320,1721925043355,-529.87,0.00013698,2]
[333182322,1721925043366,-500.0,0.00013698,2]
[333182323,1721925043376,-500.0,0.00013698,2]
[333182324,1721925043385,-500.0,0.00013698,2]
[333182325,1721925043394,-500.0,0.00013698,2]
[333182326,1721925043404,-683.0,0.00013698,2]
[333182327,1721925043414,-1553.87,0.00013698,2]
[333182328,1721925043424,-3593.65,0.00013698,2]
[333182329,1721925043434,-1032.63,0.00013698,2]
[333182330,1721925043444,-500.0,0.00013698,2]
[333182331,1721925043453,-500.0,0.00013698,2]
[333182332,1721925043463,-445.69661909,0.00013698,2]
[333182333,1721925043472,-500.0,0.00013698,2]
[333182335,1721925043482,-1644.74,0.00013698,2]
[333182337,1721925043492,-512.45577569,0.00013698,2]
[333182339,1721925043505,-500.0,0.00013698,2]
[333182341,1721925043514,-1385.13,0.00013698,2]
[333182342,1721925043523,-500.0,0.00013698,2]
[333182344,1721925043532,-540.23,0.00013698,2]
[333182346,1721925043541,-868.68,0.00013698,2]
[333182347,1721925043551,-1570.53,0.00013698,2]
[333182348,1721925043560,-615.61278734,0.00013698,2]
[333182349,1721925043570,-500.0,0.00013698,2]
[333182351,1721925043580,-500.0,0.00013698,2]
[333182353,1721925043589,-500.0,0.00013698,2]
[333182355,1721925043599,-500.0,0.00013698,2]
[333182356,1721925043608,-500.0,0.00013698,2]
[333182357,1721925043618,-231.30112682,0.00013698,2]
[333182358,1721925043628,-500.0,0.00013698,2]
[333182360,1721925043638,-500.0,0.00013698,2]
[333182362,1721925043647,-500.0,0.00013698,2]
[333182363,1721925043657,-492.72444384,0.00013698,2]
[333182364,1721925043667,-500.0,0.00013698,2]
[333182366,1721925043676,-500.0,0.00013698,2]
[333182367,1721925043685,-500.0,0.00013698,2]
[333182369,1721925043695,-500.0,0.00013698,2]
[333182370,1721925043704,-500.0,0.00013698,2]
[333182371,1721925043713,-500.0,0.00013698,2]
[333182372,1721925043722,-500.0,0.00013698,2]
[333182373,1721925043731,-500.0,0.00013698,2]
[333182374,1721925043741,-500.0,0.00013698,2]
[333182375,1721925043751,-500.0,0.00013698,2]
[333182376,1721925043763,-500.0,0.00013698,2]
[333182377,1721925043773,-500.0,0.00013698,2]
[333182378,1721925043783,-500.0,0.00013698,2]
[333182379,1721925043792,-500.0,0.00013698,2]
[333182380,1721925043802,-500.0,0.00013698,2]
[333182381,1721925043812,-500.0,0.00013698,2]
[333182382,1721925043822,-500.0,0.00013698,2]
[333182383,1721925043831,-468.95541313,0.00013698,2]
[333182384,1721925043840,-188.66237129,0.00013698,2]
[333182385,1721925043850,-626.86520636,0.00013698,2]
[333182386,1721925043860,-500.0,0.00013698,2]
[333182387,1721925043870,-500.0,0.00013698,2]
[333182388,1721925043879,-500.0,0.00013698,2]
[333182389,1721925043889,-500.0,0.00013698,2]
[333182391,1721925043899,-500.0,0.00013698,2]
[333182392,1721925043909,-500.0,0.00013698,2]
[333182393,1721925043918,-500.0,0.00013698,2]
[333182394,1721925043930,-500.0,0.00013698,2]
[333182395,1721925043940,-500.0,0.00013698,2]
[333182396,1721925043951,-500.0,0.00013698,2]
[333182397,1721925043961,-348.22414805,0.00013698,2]
[333182398,1721925043973,-548.91142312,0.00013698,2]
[333182399,1721925043982,-500.0,0.00013698,2]
[333182400,1721925043993,-500.0,0.00013698,2]
[333182401,1721925044003,-500.0,0.00013698,2]
[333182402,1721925044013,-500.0,0.00013698,2]
[333182403,1721925044022,-500.0,0.00013698,2]
[333182404,1721925044034,-500.0,0.00013698,2]
[333182405,1721925044044,-500.0,0.00013698,2]
[333182406,1721925044055,-500.0,0.00013698,2]
[333182407,1721925044066,-500.0,0.00013698,2]
[333182408,1721925044076,-500.0,0.00013698,2]
[333182409,1721925044087,-500.0,0.00013698,2]
[333182410,1721925044098,-500.0,0.00013698,2]
[333182411,1721925044108,-500.0,0.00013698,2]
[333182412,1721925044119,-500.0,0.00013698,2]
[333182413,1721925044130,-500.0,0.00013698,2]
[333182414,1721925044142,-500.0,0.00013698,2]
[333182415,1721925044152,-236.46956064,0.00013698,2]
[333182416,1721925044163,-500.0,0.00013698,2]
[333182417,1721925044172,-151.0,0.00013698,2]
[333182418,1721925044183,-501.49133993,0.00013698,2]
[333182419,1721925044194,-3000.0,0.00013699,2]
[333182420,1721925044205,-3309.2147098,0.00013699,2]
[333182421,1721925044216,-2892.565545,0.00013699,2]
[333182422,1721925044228,-373.22041386,0.00013699,2]
[333182423,1721925044240,-505.0,0.00013858,2]
[333182424,1721925044251,-1409.0,0.00013858,2]
[333182425,1721925044261,-1092.07758591,0.00013861,2]
[333182426,1721925044270,-7703.73262212,0.000139,2]
[333182427,1721925044281,-161.642245,0.00013928,2]
[333182428,1721925044291,-161.642245,0.00013928,2]
[333182429,1721925044303,-161.642245,0.00013928,2]
[333182430,1721925044313,-151.0,0.00013951,2]
[333182431,1721925044323,-151.0,0.00013951,2]
[333182432,1721925044333,-524.805313,0.00013951,2]
[333182433,1721925044343,-524.805313,0.00013951,2]
[333182434,1721925044354,-17810.0619592,0.00013951,2]
[333182435,1721925044365,-151.0,0.00013952,2]
[333182436,1721925044375,-151.0,0.00013961,2]
[333182437,1721925044386,-244.090273,0.00013961,2]
[333182438,1721925044397,-244.090273,0.00013961,2]
[333182439,1721925044407,-151.0,0.00013961,2]
[333182440,1721925044416,-151.0,0.00013961,2]
[333182441,1721925044427,-1825.9,0.00013961,2]
[333182442,1721925044437,-1825.9,0.00013961,2]
[333182443,1721925044447,-1825.9,0.00013961,2]
[333182444,1721925044459,-1825.9,0.00013961,2]
[333182445,1721925044470,-1825.9,0.00013961,2]
[333182446,1721925044481,-1825.9,0.00013961,2]
[333182447,1721925044493,-1825.9,0.00013961,2]
[333182448,1721925044505,-1825.9,0.00013961,2]
[333182449,1721925044515,-1825.9,0.00013961,2]
[333182450,1721925044525,-1825.9,0.00013961,2]
[333182451,1721925044536,-1825.9,0.00013961,2]
[333182452,1721925044547,-1825.9,0.00013961,2]
[333182453,1721925044558,-1825.9,0.00013961,2]
[333182454,1721925044568,-151.0,0.00013962,2]
[333182455,1721925044580,-244.090273,0.00013962,2]
[333182456,1721925044589,-244.090273,0.00013962,2]
[333182457,1721925044598,-151.0,0.00013962,2]
[333182458,1721925044607,-151.0,0.00013962,2]
[333182459,1721925044617,-151.0,0.00013962,2]
[333182460,1721925044626,-151.0,0.00013962,2]
[333182461,1721925044636,-524.805313,0.00013962,2]
[333182462,1721925044645,-524.805313,0.00013962,2]
[333182463,1721925044654,-89050.3097959,0.00013962,2]
[333182464,1721925044664,-166.996697,0.00013972,2]
[333182465,1721925044674,-166.996697,0.00013972,2]
[333182466,1721925044683,-166.996697,0.00013972,2]
[333182467,1721925044693,-166.996697,0.00013972,2]
[333182468,1721925044703,-500.0,0.00013972,2]
[333182469,1721925044712,-500.0,0.00013972,2]
[333182470,1721925044722,-500.0,0.00013972,2]
[333182471,1721925044732,-1473.79,0.00013972,2]
[333182472,1721925044741,-317.57143978,0.00013972,2]
[333182473,1721925044751,-500.0,0.00013972,2]
[333182474,1721925044762,-500.0,0.00013972,2]
[333182475,1721925044771,-500.0,0.00013972,2]
[333182476,1721925044781,-500.0,0.00013972,2]
[333182477,1721925044790,-500.0,0.00013972,2]
[333182478,1721925044799,-500.0,0.00013972,2]
[333182479,1721925044809,-500.0,0.00013972,2]
[333182480,1721925044819,-693.14,0.00013972,2]
[333182481,1721925044828,-500.0,0.00013972,2]
[333182482,1721925044838,-502.2196872,0.00013972,2]
[333182483,1721925044847,-501.77585729,0.00013972,2]
[333182484,1721925044857,-500.0,0.00013972,2]
[333182485,1721925044866,-500.0,0.00013972,2]
[333182486,1721925044876,-500.0,0.00013972,2]
[333182487,1721925044885,-233.69325146,0.00013972,2]
[333182488,1721925044894,-500.0,0.00013972,2]
[333182489,1721925044903,-500.0,0.00013972,2]
[333182490,1721925045026,-500.0,0.00013972,2]
[333182491,1721925045051,-529.67477119,0.00013972,2]
[333182492,1721925045061,-500.0,0.00013972,2]
[333182493,1721925045070,-500.0,0.00013972,2]
[333182494,1721925045080,-699.57,0.00013972,2]
[333182495,1721925045089,-503.32840779,0.00013972,2]
[333182496,1721925045099,-500.0,0.00013972,2]
[333182497,1721925045109,-500.0,0.00013972,2]
[333182498,1721925045122,-488.72897069,0.00013972,2]
[333182499,1721925045132,-500.0,0.00013972,2]
[333182500,1721925045141,-500.0,0.00013972,2]
[333182501,1721925045150,-799.6,0.00013972,2]
[333182502,1721925045160,-500.0,0.00013972,2]
[333182503,1721925045169,-500.0,0.00013972,2]
[333182504,1721925045179,-500.0,0.00013972,2]
[333182505,1721925045189,-637.57,0.00013972,2]
[333182506,1721925045199,-500.0,0.00013972,2]
[333182507,1721925045209,-500.0,0.00013972,2]
[333182508,1721925045218,-500.0,0.00013972,2]
[333182509,1721925045227,-500.0,0.00013972,2]
[333182510,1721925045237,-1259.43,0.00013972,2]
[333182511,1721925045247,-500.0,0.00013972,2]
[333182512,1721925045259,-500.0,0.00013972,2]
[333182513,1721925045268,-500.0,0.00013972,2]
[333182514,1721925045277,-500.0,0.00013972,2]
[333182515,1721925045286,-580.11517769,0.00013972,2]
[333182516,1721925045295,-306.08461225,0.00013972,2]
[333182517,1721925045304,-500.0,0.00013972,2]
[333182518,1721925045313,-151.0,0.00013972,2]
[333182519,1721925045324,-500.0,0.00013972,2]
[333182520,1721925045333,-621.97,0.00013972,2]
[333182521,1721925045342,-500.0,0.00013972,2]
[333182522,1721925045351,-511.04286735,0.00013972,2]
[333182523,1721925045361,-500.0,0.00013972,2]
[333182524,1721925045370,-500.0,0.00013972,2]
[333182525,1721925045380,-500.0,0.00013972,2]
[333182526,1721925045389,-500.0,0.00013972,2]
[333182527,1721925045398,-318.30549013,0.00013972,2]
[333182528,1721925045407,-500.0,0.00013972,2]
[333182529,1721925045417,-500.0,0.00013972,2]
[333182530,1721925045426,-964.7,0.00013972,2]
[333182531,1721925045435,-506.89,0.00013972,2]
[333182532,1721925045444,-151.0,0.00013972,2]
[333182533,1721925045455,-500.0,0.00013972,2]
[333182534,1721925045465,-1070.06,0.00013972,2]
[333182535,1721925045476,-500.0,0.00013972,2]
[333182536,1721925045486,-926.68,0.00013972,2]
[333182537,1721925045497,-541.93,0.00013972,2]
[333182538,1721925045509,-500.0,0.00013972,2]
[333182539,1721925045521,-591.87564627,0.00013972,2]
[333182540,1721925045532,-500.0,0.00013972,2]
[333182541,1721925045542,-1058.1,0.00013972,2]
[333182542,1721925045553,-500.0,0.00013972,2]
[333182543,1721925045563,-1310.46,0.00013972,2]
[333182544,1721925045574,-324.46502427,0.00013972,2]
[333182553,1721925046668,-517.1,0.00013698,2]
[333182554,1721925046677,-3381.06,0.00013698,2]
[333182555,1721925046687,-684.71,0.00013698,2]
[333182556,1721925046697,-500.0,0.00013698,2]
[333182557,1721925046706,-684.71,0.00013698,2]
[333182558,1721925046716,-684.71,0.00013698,2]
[333182560,1721925046725,-454.36497573,0.00013972,2]
[333182562,1721925046734,-500.0,0.00013972,2]
[333182563,1721925046744,-500.0,0.00013972,2]
[333182564,1721925046755,-536.36,0.00013972,2]
[333182565,1721925046766,-500.0,0.00013972,2]
[333182566,1721925046775,-617.49268695,0.00013972,2]
[333182568,1721925046786,-500.0,0.00013972,2]
[333182569,1721925046795,-500.0,0.00013972,2]
[333182571,1721925046804,-500.0,0.00013972,2]
[333182573,1721925046813,-500.0,0.00013972,2]
[333182574,1721925046824,-500.0,0.00013972,2]
[333182575,1721925046835,-500.0,0.00013972,2]
[333182576,1721925046847,-500.0,0.00013972,2]
[333182577,1721925046857,-500.0,0.00013972,2]
[333182578,1721925046868,-500.0,0.00013972,2]
[333182579,1721925046879,-500.0,0.00013972,2]
[333182580,1721925046889,-1608.44,0.00013972,2]
[333182581,1721925046899,-1423.73,0.00013972,2]
[333182582,1721925046911,-500.0,0.00013972,2]
[333182583,1721925046921,-500.0,0.00013972,2]
[333182584,1721925046931,-500.0,0.00013972,2]
[333182585,1721925046943,-500.0,0.00013972,2]
[333182586,1721925046952,-151.0,0.00013972,2]
[333182587,1721925046961,-151.0,0.00013972,2]
[333182588,1721925046972,-623.0,0.00013972,2]
[333182589,1721925046982,-500.0,0.00013972,2]
[333182590,1721925046993,-500.0,0.00013972,2]
[333182591,1721925047003,-500.0,0.00013972,2]
[333182592,1721925047014,-500.0,0.00013972,2]
[333182593,1721925047024,-719.38,0.00013972,2]
[333182594,1721925047035,-500.0,0.00013972,2]
[333182595,1721925047044,-2432.39,0.00013972,2]
[333182596,1721925047055,-500.0,0.00013972,2]
[333182597,1721925047067,-500.0,0.00013972,2]
[333182598,1721925047077,-500.0,0.00013972,2]
[333182599,1721925047087,-500.0,0.00013972,2]
[333182600,1721925047096,-1405.09,0.00013972,2]
[333182601,1721925047106,-500.0,0.00013972,2]
[333182602,1721925047116,-668.52,0.00013972,2]
[333182603,1721925047129,-500.0,0.00013972,2]
[333182604,1721925047138,-1036.93,0.00013972,2]
[333182605,1721925047147,-500.0,0.00013972,2]
[333182606,1721925047157,-500.0,0.00013972,2]
[333182607,1721925047168,-244.090273,0.00013972,2]
[333182608,1721925047178,-244.090273,0.00013972,2]
[333182609,1721925047187,-1124.14,0.00013972,2]
[333182610,1721925047199,-500.0,0.00013972,2]
[333182611,1721925047207,-244.090273,0.00013972,2]
[333182612,1721925047217,-244.090273,0.00013972,2]
[333182613,1721925047226,-520.64673539,0.00013972,2]
[333182614,1721925047236,-500.0,0.00013972,2]
[333182615,1721925047245,-500.0,0.00013972,2]
[333182616,1721925047254,-500.0,0.00013972,2]
[333182617,1721925047266,-500.0,0.00013972,2]
[333182618,1721925047275,-500.0,0.00013972,2]
[333182619,1721925047284,-1320.32,0.00013972,2]
[333182620,1721925047293,-500.0,0.00013972,2]
[333182621,1721925047303,-744.09,0.00013972,2]
[333182622,1721925047312,-941.06,0.00013972,2]
[333182623,1721925047321,-500.0,0.00013972,2]
[333182624,1721925047332,-151.0,0.00013972,2]
[333182625,1721925047341,-151.0,0.00013972,2]
[333182626,1721925047350,-151.0,0.00013972,2]
[333182627,1721925047360,-151.0,0.00013972,2]
[333182628,1721925047369,-269.37015071,0.00013972,2]
[333182629,1721925047378,-500.0,0.00013972,2]
[333182630,1721925047388,-822.38,0.00013972,2]
[333182631,1721925047397,-500.0,0.00013972,2]
[333182632,1721925047406,-500.0,0.00013972,2]
[333182633,1721925047415,-1441.44,0.00013972,2]
[333182634,1721925047425,-258.05509899,0.00013972,2]
[333182635,1721925047435,-981.8,0.00013972,2]
[333182636,1721925047444,-500.0,0.00013972,2]
[333182637,1721925047454,-1303.45,0.00013972,2]
[333182638,1721925047463,-500.0,0.00013972,2]
[333182639,1721925047472,-500.0,0.00013972,2]
[333182640,1721925047482,-1588.14,0.00013972,2]
[333182641,1721925047491,-500.0,0.00013972,2]
[333182642,1721925047501,-500.0,0.00013972,2]
[333182643,1721925047512,-500.0,0.00013972,2]
[333182644,1721925047521,-753.55,0.00013972,2]
[333182645,1721925047531,-228.60957987,0.00013972,2]
[333182646,1721925047540,-547.32,0.00013972,2]
[333182647,1721925047549,-500.0,0.00013972,2]
[333182648,1721925047558,-584.69,0.00013972,2]
[333182649,1721925047567,-921.17,0.00013972,2]
[333182650,1721925047576,-757.27,0.00013972,2]
[333182651,1721925047586,-500.0,0.00013972,2]
[333182652,1721925047595,-500.0,0.00013972,2]
[333182653,1721925047605,-500.0,0.00013972,2]
[333182654,1721925047614,-626.78,0.00013972,2]
[333182655,1721925047623,-707.94,0.00013972,2]
[333182656,1721925047634,-500.0,0.00013972,2]
[333182657,1721925047644,-500.0,0.00013972,2]
[333182658,1721925047653,-500.0,0.00013972,2]
[333182659,1721925047663,-500.0,0.00013972,2]
[333182660,1721925047672,-500.0,0.00013972,2]
[333182661,1721925047682,-500.0,0.00013972,2]
[333182662,1721925047691,-500.0,0.00013972,2]
[333182663,1721925047701,-531.79,0.00013972,2]
[333182664,1721925047713,-500.0,0.00013972,2]
[333182665,1721925047722,-500.0,0.00013972,2]
[333182666,1721925047731,-892.96,0.00013972,2]
[333182667,1721925047741,-524.3,0.00013972,2]
[333182668,1721925047751,-500.0,0.00013972,2]
[333182669,1721925047760,-500.0,0.00013972,2]
[333182670,1721925047770,-500.0,0.00013972,2]
[333182671,1721925047779,-500.0,0.00013972,2]
[333182672,1721925047788,-1006.41,0.00013972,2]
[333182673,1721925047798,-500.0,0.00013972,2]
[333182674,1721925047807,-538.43,0.00013972,2]
[333182675,1721925047817,-500.0,0.00013972,2]
[333182676,1721925047827,-500.0,0.00013972,2]
[333182677,1721925047837,-500.0,0.00013972,2]
[333182678,1721925047846,-1192.14,0.00013972,2]
[333182679,1721925047856,-500.0,0.00013972,2]
[333182680,1721925047866,-151.0,0.00013972,2]
[333182681,1721925047875,-1162.27,0.00013972,2]
[333182682,1721925047884,-500.0,0.00013972,2]
[333182683,1721925047894,-500.0,0.00013972,2]
[333182684,1721925047903,-500.0,0.00013972,2]
[333182685,1721925047913,-500.0,0.00013972,2]
[333182686,1721925047923,-591.88,0.00013972,2]
[333182687,1721925047932,-1235.93,0.00013972,2]
[333182688,1721925047941,-500.0,0.00013972,2]
[333182689,1721925047951,-500.0,0.00013972,2]
[333182690,1721925047961,-500.0,0.00013972,2]
[333182691,1721925047971,-1816.54,0.00013972,2]
[333182692,1721925047981,-151.0,0.00013972,2]
[333182693,1721925047990,-151.0,0.00013972,2]
[333182694,1721925048000,-500.0,0.00013972,2]
[333182695,1721925048010,-500.0,0.00013972,2]
[333182696,1721925048019,-500.0,0.00013972,2]
[333182697,1721925048029,-500.0,0.00013972,2]
[333182698,1721925048038,-847.96,0.00013972,2]
[333182699,1721925048048,-500.0,0.00013972,2]
[333182700,1721925048057,-1168.2,0.00013972,2]
[333182701,1721925048067,-500.0,0.00013972,2]
[333182702,1721925048076,-500.0,0.00013972,2]
[333182703,1721925048086,-500.0,0.00013972,2]
[333182704,1721925048096,-500.0,0.00013972,2]
[333182705,1721925048107,-500.0,0.00013972,2]
[333182706,1721925048117,-159.2254058,0.00013972,2]
[333182707,1721925048129,-500.0,0.00013972,2]
[333182708,1721925048139,-500.0,0.00013972,2]
[333182709,1721925048148,-1116.08,0.00013972,2]
[333182710,1721925048160,-1251.54,0.00013972,2]
[333182711,1721925048169,-500.0,0.00013972,2]
[333182712,1721925048322,-500.0,0.00013972,2]
[333182713,1721925048332,-500.0,0.00013972,2]
[333182714,1721925048342,-633.68,0.00013972,2]
[333182715,1721925048352,-500.0,0.00013972,2]
[333182716,1721925048361,-500.0,0.00013972,2]
[333182717,1721925048371,-538.3,0.00013972,2]
[333182718,1721925048381,-985.59,0.00013972,2]
[333182719,1721925048390,-500.0,0.00013972,2]
[333182720,1721925048400,-524.805313,0.00013972,2]
[333182721,1721925048409,-524.805313,0.00013972,2]
[333182722,1721925048419,-928.65,0.00013972,2]
[333182723,1721925048428,-524.805313,0.00013972,2]
[333182724,1721925048438,-500.0,0.00013972,2]
[333182725,1721925048447,-524.805313,0.00013972,2]
[333182726,1721925048458,-500.0,0.00013972,2]
[333182727,1721925048467,-500.0,0.00013972,2]
[333182728,1721925048478,-638.55,0.00013972,2]
[333182729,1721925048488,-962.84,0.00013972,2]
[333182730,1721925048499,-1499.49,0.00013972,2]
[333182731,1721925048511,-500.0,0.00013972,2]
[333182732,1721925048521,-500.0,0.00013972,2]
[333182733,1721925048531,-621.52,0.00013972,2]
[333182734,1721925048541,-500.0,0.00013972,2]
[333182735,1721925048550,-515.91565031,0.00013972,2]
[333182736,1721925048560,-2465.27,0.00013972,2]
[333182737,1721925048570,-500.0,0.00013972,2]
[333182738,1721925048581,-500.0,0.00013972,2]
[333182739,1721925048590,-500.0,0.00013972,2]
[333182740,1721925048600,-500.0,0.00013972,2]
[333182741,1721925048610,-853.83,0.00013972,2]
[333182742,1721925048620,-500.0,0.00013972,2]
[333182743,1721925048631,-543.56,0.00013972,2]
[333182744,1721925048641,-500.0,0.00013972,2]
[333182745,1721925048651,-2241.06,0.00013972,2]
[333182746,1721925048662,-500.0,0.00013972,2]
[333182747,1721925048671,-500.0,0.00013972,2]
[333182748,1721925048681,-1106.82,0.00013972,2]
[333182749,1721925048692,-500.0,0.00013972,2]
[333182750,1721925048702,-500.0,0.00013972,2]
[333182751,1721925048713,-2163.63,0.00013972,2]
[333182752,1721925048724,-500.0,0.00013972,2]
[333182753,1721925048734,-500.0,0.00013972,2]
[333182754,1721925048745,-626.11163053,0.00013972,2]
[333182755,1721925048756,-500.0,0.00013972,2]
[333182756,1721925048765,-500.0,0.00013972,2]
[333182757,1721925048775,-500.0,0.00013972,2]
[333182758,1721925048784,-1015.17,0.00013972,2]
[333182759,1721925048794,-500.0,0.00013972,2]
[333182760,1721925048804,-1836.55,0.00013972,2]
[333182761,1721925048814,-500.0,0.00013972,2]
[333182762,1721925048825,-503.15642272,0.00013972,2]
[333182763,1721925048837,-513.70089173,0.00013972,2]
[333182764,1721925048847,-500.0,0.00013972,2]
[333182765,1721925048857,-3161.02,0.00013972,2]
[333182766,1721925048867,-3357.02,0.00013972,2]
[333182767,1721925048877,-1670.84,0.00013972,2]
[333182768,1721925048886,-500.0,0.00013972,2]
[333182769,1721925048895,-500.0,0.00013972,2]
[333182770,1721925048905,-500.0,0.00013972,2]
[333182771,1721925048914,-915.79,0.00013972,2]
[333182772,1721925048924,-789.83,0.00013972,2]
[333182773,1721925048934,-500.0,0.00013972,2]
[333182774,1721925048943,-500.0,0.00013972,2]
[333182775,1721925048953,-500.0,0.00013972,2]
[333182776,1721925048963,-500.0,0.00013972,2]
[333182777,1721925048973,-1931.27,0.00013972,2]
[333182778,1721925048982,-500.0,0.00013972,2]
[333182779,1721925048992,-500.0,0.00013972,2]
[333182780,1721925049002,-500.0,0.00013972,2]
[333182781,1721925049013,-500.0,0.00013972,2]
[333182782,1721925049023,-1848.12,0.00013972,2]
[333182783,1721925049033,-500.0,0.00013972,2]
[333182784,1721925049042,-500.0,0.00013972,2]
[333182785,1721925049052,-1029.23,0.00013972,2]
[333182786,1721925049062,-500.0,0.00013972,2]
[333182787,1721925049072,-11412.92,0.00013972,2]
[333182788,1721925049082,-1852.23,0.00013972,2]
[333182789,1721925049092,-500.0,0.00013972,2]
[333182790,1721925049103,-500.0,0.00013972,2]
[333182791,1721925049114,-500.0,0.00013972,2]
[333182792,1721925049128,-7659.52,0.00013972,2]
[333182793,1721925049139,-849.61,0.00013972,2]
[333182794,1721925049149,-500.0,0.00013972,2]
[333182795,1721925049161,-500.0,0.00013972,2]
[333182796,1721925049171,-4828.62,0.00013972,2]
[333182797,1721925049181,-500.0,0.00013972,2]
[333182798,1721925049191,-9575.96,0.00013972,2]
[333182799,1721925049203,-500.0,0.00013972,2]
[333182800,1721925049213,-500.0,0.00013972,2]
[333182801,1721925049222,-500.0,0.00013972,2]
[333182802,1721925049231,-500.0,0.00013972,2]
[333182803,1721925049241,-769.05,0.00013972,2]
[333182804,1721925049251,-500.0,0.00013972,2]
[333182805,1721925049262,-2113.22,0.00013972,2]
[333182806,1721925049271,-500.0,0.00013972,2]
[333182807,1721925049280,-603.89,0.00013972,2]
[333182808,1721925049290,-1489.61,0.00013972,2]
[333182809,1721925049301,-500.0,0.00013972,2]
[333182810,1721925049312,-574.52,0.00013972,2]
[333182811,1721925049323,-500.0,0.00013972,2]
[333182812,1721925049334,-500.0,0.00013972,2]
[333182813,1721925049346,-500.0,0.00013972,2]
[333182814,1721925049356,-5368.64,0.00013972,2]
[333182815,1721925049368,-500.0,0.00013972,2]
[333182816,1721925049378,-500.0,0.00013972,2]
[333182817,1721925049390,-500.0,0.00013972,2]
[333182818,1721925049400,-500.0,0.00013972,2]
[333182819,1721925049411,-1936.03,0.00013972,2]
[333182820,1721925049422,-500.0,0.00013972,2]
[333182821,1721925049432,-500.0,0.00013972,2]
[333182822,1721925049442,-1762.51,0.00013972,2]
[333182823,1721925049454,-568.96581752,0.00013972,2]